fUSD/lending_fUSD_20260605
["ID","MTS","AMOUNT","RATE_DAILY","PERIOD"]
[424209413,1780665143000,-765.0210439,0.00013699,2]
[424209421,1780665180000,-188.38600516,0.00012154,2]
[424209422,1780665180000,-649.5285285,0.00012354,2]
[424209420,1780665180000,-227.1152959,0.00011774,7]
[424209423,1780665183000,-273.39674476,0.00011543,7]
[424209424,1780665183000,-273.39674476,0.00011774,7]
[424209426,1780665183000,-1458.69492292,0.00012354,2]
[424209425,1780665183000,-273.39674476,0.0001212,7]
[424209427,1780665199000,-500.0,0.00011305,2]
[424209428,1780665226000,8597.30987669,0.00030136,120]
[424209429,1780665243000,-500.0,0.00011305,2]
[424209430,1780665297000,-500.0,0.00011305,2]
[424209431,1780665315000,250.00000006,0.00030137,120]
[424209432,1780665371000,800.0,0.000115,4]
[424209433,1780665544000,-273.39674477,0.00011543,7]
[424209434,1780665547000,200.0,0.00030137,120]
[424209435,1780665572000,-1600.0,0.000116,4]
[424209436,1780665625000,-500.0,0.0001167,2]
[424209437,1780665679000,-500.0,0.0001167,2]
[424209438,1780665685000,144980.11971114,0.0003,120]
[424209439,1780665695000,400.0,0.000115,4]
[424209440,1780665733000,-500.0,0.00011553,2]
[424209441,1780665735000,200.0,0.000115,4]
[424209442,1780665788000,-800.0,0.000116,4]
[424209443,1780665789000,514.00806475,0.00030136,120]
[424209444,1780665801000,1999.9999999,0.00030136,120]
[424209445,1780665841000,-500.0,0.000116,4]
[424209448,1780665932000,700.0,0.000115,4]
[424209449,1780665949000,189.58843079,0.000115,3]
[424209450,1780665965000,-215.77576141,0.00011524,2]
[424209451,1780665997000,2000.0,0.00030137,120]
[424209452,1780666042000,195.33353476,0.000115,3]
[424209453,1780666073000,-1400.0,0.000116,4]
[424209454,1780666075000,10000.0,0.00030137,120]
[424209455,1780666102000,-152.0,0.00012119,7]
[424209456,1780666102000,-152.0,0.00012119,7]
[424209457,1780666119000,1400.0,0.000115,4]
[424209458,1780666134000,185.96,0.00030136,120]
[424209459,1780666221000,200.0,0.000115,4]
[424209460,1780666230000,296.64782404,0.00011087,7]
[424209461,1780666231000,296.64782404,0.00011309,7]
[424209492,1780666247000,-153.20364625,0.00010509,2]
[424209493,1780666247000,-200.0,0.00010932,2]
[424209495,1780666247000,-156.38611047,0.00010938,2]
[424209497,1780666247000,-242.90653441,0.00011086,2]
[424209498,1780666247000,-3721.9,0.00011087,2]
[424209500,1780666247000,-166.66,0.00011475,2]
[424209502,1780666247000,-1317.32423859,0.00011524,2]
[424209504,1780666247000,-300.0,0.00011599,2]
[424209496,1780666247000,-500.0,0.00011086,2]
[424209505,1780666248000,-1200.0,0.00011599,2]
[424209506,1780666248000,-2900.0,0.000116,4]
[424209507,1780666248000,-400.0,0.000116,4]
[424209508,1780666248000,-296.64782404,0.00011642,7]
[424209510,1780666248000,-600.0,0.000117,4]
[424209509,1780666248000,-4400.0,0.000117,4]
[424209512,1780666248000,-150.0,0.00011737,2]
[424209513,1780666248000,-29949.37363796,0.00011738,2]
[424209515,1780666248000,-113779.74136604,0.00011738,2]
[424209514,1780666248000,-70724.53726712,0.00011738,2]
[424209517,1780666248000,-252.80804943,0.00011738,2]
[424209518,1780666248000,-257.8752,0.00011738,2]
[424209511,1780666248000,-215.77576141,0.00011735,2]
[424209523,1780666250000,-2424.07895351,0.00011738,2]
[424209522,1780666250000,-655.85593076,0.00011738,2]
[424209524,1780666251000,-442.10599987,0.00011728,2]
[424209536,1780666253000,-2226.61073447,0.00011738,2]
[424209535,1780666253000,-1071.38926553,0.00011728,2]
[424209534,1780666253000,-152.0,0.00011311,2]
[424209538,1780666254000,-558.693,0.00011738,2]
[424209539,1780666254000,-1881.15890308,0.00011738,2]
[424209537,1780666254000,-2491.87885334,0.00011738,2]
[424209541,1780666254000,-1666.80000001,0.00011738,2]
[424209540,1780666254000,-622.9990785,0.00011738,2]
[424209542,1780666254000,-6568.35617318,0.00011738,2]
[424209551,1780666256000,-600442.06414028,0.00011738,2]
[424209582,1780666260000,-610.88804352,0.00011738,2]
[424209585,1780666260000,-7119.83246342,0.00011738,2]
[424209593,1780666261000,-236.97,0.0001178,2]
[424209596,1780666261000,-5900.0,0.000118,4]
[424209598,1780666261000,-800.0,0.000118,4]
[424209590,1780666261000,-657766.44820538,0.00011738,2]
[424209603,1780666261000,-214.33512441,0.00011809,2]
[424209605,1780666261000,-1533.1,0.00011812,2]
[424209607,1780666261000,-7794.96358017,0.00011838,2]
[424209601,1780666261000,-2980.331,0.00011809,2]
[424209592,1780666261000,-215.77576141,0.00011742,2]
[424209623,1780666262000,-1000.0,0.000119,4]
[424209621,1780666262000,-7300.0,0.000119,4]
[424209619,1780666262000,-1513.4952654,0.00011899,2]
[424209617,1780666262000,-166.66,0.00011854,2]
[424209615,1780666262000,-150.0,0.0001185,2]
[424209610,1780666262000,-238.26832987,0.00011838,2]
[424209608,1780666262000,-6002.98043784,0.00011838,2]
[424209627,1780666263000,-150.0,0.00011908,2]
[424209625,1780666263000,-1101.40459724,0.00011908,3]
[424209630,1780666263000,-1000.0,0.00011908,2]
[424209629,1780666263000,-1000.0,0.00011908,2]
[424209640,1780666264000,-1533.1,0.000121,2]
[424209638,1780666264000,-296.64782404,0.00011974,7]
[424209636,1780666264000,-200.0,0.00011938,2]
[424209634,1780666264000,-2500000.0,0.00011909,2]
[424209644,1780666265000,-6002.98043781,0.00012163,2]
[424209642,1780666265000,-7794.96358009,0.00012156,2]
[424209641,1780666265000,-152.0,0.00012122,7]
[424209645,1780666266000,-166.66,0.00012233,2]
[424209647,1780666266000,-10000.0,0.00012254,2]
[424209651,1780666266000,-250.0,0.00012314,2]
[424209650,1780666266000,-632.23375007,0.00012314,2]
[424209652,1780666266000,-1533.1,0.00012388,2]
[424209649,1780666266000,-238.26832983,0.00012275,2]
[424209654,1780666267000,-7794.96358009,0.00012474,2]
[424209653,1780666267000,-296.64782405,0.00012418,7]
[424209655,1780666268000,-6002.98043781,0.00012487,2]
[424209656,1780666268000,-311.78240267,0.000125,2]
[424209659,1780666268000,-1533.1,0.00012676,2]
[424209657,1780666268000,-159.65,0.00012594,2]
[424209658,1780666268000,-166.66,0.00012612,2]
[424209663,1780666268000,-255.0,0.00012805,2]
[424209661,1780666268000,-1680.0,0.00012759,2]
[424209660,1780666268000,-238.26832983,0.00012713,2]
[424209662,1780666268000,-7794.96358009,0.00012792,2]
[424209666,1780666269000,-14601.84430819,0.00012859,2]
[424209667,1780666269000,-466.36550425,0.00012894,2]
[424209665,1780666269000,-25983.21193366,0.00012859,2]
[424209664,1780666269000,-6002.98043781,0.00012812,2]
[424209668,1780666270000,-273.39674478,0.00012928,7]
[424209669,1780666270000,-166.66,0.0001299,2]
[424209672,1780666270000,-6002.98043781,0.00013137,2]
[424209673,1780666270000,-238.26832983,0.0001315,2]
[424209671,1780666270000,-7794.96358009,0.0001311,2]
[424209670,1780666270000,-189.58843079,0.00012996,2]
[424209680,1780666271000,-877.63,0.00013698,2]
[424209679,1780666271000,-877.63,0.00013698,2]
[424209678,1780666271000,-3590.95341226,0.00013645,2]
[424209677,1780666271000,-238.26832983,0.00013588,2]
[424209676,1780666271000,-6002.98043781,0.00013461,2]
[424209674,1780666271000,-166.66,0.00013369,2]
[424209675,1780666271000,-7794.96358009,0.00013428,2]
[424209681,1780666272000,-877.63,0.00013698,2]
[424209683,1780666273000,-877.63,0.00013698,2]
[424209682,1780666273000,-877.63,0.00013698,2]
[424209690,1780666274000,-877.63,0.00013698,2]
[424209688,1780666274000,-877.63,0.00013698,2]
[424209689,1780666274000,-877.63,0.00013698,2]
[424209687,1780666274000,-877.63,0.00013698,2]
[424209686,1780666274000,-877.63,0.00013698,2]
[424209685,1780666274000,-877.63,0.00013698,2]
[424209684,1780666274000,-877.63,0.00013698,2]
[424209692,1780666275000,-877.63,0.00013698,2]
[424209691,1780666275000,-877.63,0.00013698,2]
[424209694,1780666275000,-877.63,0.00013698,2]
[424209693,1780666275000,-877.63,0.00013698,2]
[424209698,1780666276000,-877.63,0.00013698,2]
[424209697,1780666276000,-877.63,0.00013698,2]
[424209696,1780666276000,-877.63,0.00013698,2]
[424209695,1780666276000,-877.63,0.00013698,2]
[424209703,1780666277000,-500.51682456,0.00013698,2]
[424209702,1780666277000,-877.78546156,0.00013698,2]
[424209701,1780666277000,-877.63,0.00013698,2]
[424209700,1780666277000,-877.63,0.00013698,2]
[424209699,1780666277000,-877.63,0.00013698,2]
[424209704,1780666278000,-521.53,0.00013698,2]
[424209705,1780666278000,-521.53,0.00013698,2]
[424209706,1780666278000,-521.53,0.00013698,2]
[424209707,1780666278000,-521.53,0.00013698,2]
[424209708,1780666278000,-521.53,0.00013698,2]
[424209709,1780666279000,-521.53,0.00013698,2]
[424209712,1780666279000,-521.53,0.00013698,2]
[424209711,1780666279000,-521.53,0.00013698,2]
[424209710,1780666279000,-521.53,0.00013698,2]
[424209717,1780666280000,-521.53,0.00013698,2]
[424209716,1780666280000,-521.53,0.00013698,2]
[424209715,1780666280000,-521.53,0.00013698,2]
[424209714,1780666280000,-521.53,0.00013698,2]
[424209713,1780666280000,-521.53,0.00013698,2]
[424209719,1780666281000,-521.53,0.00013698,2]
[424209718,1780666281000,-521.53,0.00013698,2]
[424209720,1780666281000,-521.53,0.00013698,2]
[424209725,1780666282000,-521.53,0.00013698,2]
[424209724,1780666282000,-521.53,0.00013698,2]
[424209722,1780666282000,-521.53,0.00013698,2]
[424209723,1780666282000,-521.53,0.00013698,2]
[424209721,1780666282000,-521.53,0.00013698,2]
[424209726,1780666283000,-521.53,0.00013698,2]
[424209727,1780666283000,-521.68267291,0.00013698,2]
[424209728,1780666283000,-500.0,0.00013698,2]
[424209729,1780666283000,-500.0,0.00013698,2]
[424209731,1780666283000,-500.0,0.00013698,2]
[424209730,1780666283000,-500.0,0.00013698,2]
[424209735,1780666284000,-500.0,0.00013698,2]
[424209734,1780666284000,-198.06261394,0.00013698,2]
[424209733,1780666284000,-500.0,0.00013698,2]
[424209732,1780666284000,-500.0,0.00013698,2]
[424209737,1780666285000,-500.0,0.00013698,2]
[424209736,1780666285000,-500.0,0.00013698,2]
[424209738,1780666286000,-500.0,0.00013698,2]
[424209740,1780666286000,-500.0,0.00013698,2]
[424209739,1780666286000,-500.0,0.00013698,2]
[424209742,1780666286000,-550.35864884,0.00013698,2]
[424209741,1780666286000,-500.0,0.00013698,2]
[424209748,1780666287000,-500.0,0.00013698,2]
[424209747,1780666287000,-500.0,0.00013698,2]
[424209746,1780666287000,-500.0,0.00013698,2]
[424209745,1780666287000,-500.0,0.00013698,2]
[424209744,1780666287000,-500.0,0.00013698,2]
[424209743,1780666287000,-500.0,0.00013698,2]
[424209749,1780666288000,-500.0,0.00013698,2]
[424209750,1780666289000,-500.0,0.00013698,2]
[424209751,1780666289000,-500.0,0.00013698,2]
[424209753,1780666289000,-500.0,0.00013698,2]
[424209752,1780666289000,-500.0,0.00013698,2]
[424209754,1780666289000,-500.0,0.00013698,2]
[424209758,1780666290000,-500.0,0.00013698,2]
[424209757,1780666290000,-500.0,0.00013698,2]
[424209756,1780666290000,-159.55981586,0.00013698,2]
[424209755,1780666290000,-500.0,0.00013698,2]
[424209760,1780666291000,-500.0,0.00013698,2]
[424209759,1780666291000,-500.0,0.00013698,2]
[424209761,1780666292000,-500.0,0.00013698,2]
[424209762,1780666292000,-500.0,0.00013698,2]
[424209764,1780666292000,-500.0,0.00013698,2]
[424209765,1780666292000,-500.0,0.00013698,2]
[424209766,1780666292000,-500.0,0.00013698,2]
[424209767,1780666292000,-500.0,0.00013698,2]
[424209763,1780666292000,-500.0,0.00013698,2]
[424209773,1780666293000,-500.0,0.00013698,2]
[424209772,1780666293000,-500.0,0.00013698,2]
[424209771,1780666293000,-500.0,0.00013698,2]
[424209770,1780666293000,-500.0,0.00013698,2]
[424209768,1780666293000,-500.0,0.00013698,2]
[424209769,1780666293000,-514.41748853,0.00013698,2]
[424209774,1780666294000,-500.0,0.00013698,2]
[424209775,1780666294000,-500.0,0.00013698,2]
[424209777,1780666294000,-500.0,0.00013698,2]
[424209776,1780666294000,-500.0,0.00013698,2]
[424209781,1780666295000,-500.0,0.00013698,2]
[424209780,1780666295000,-500.0,0.00013698,2]
[424209779,1780666295000,-500.0,0.00013698,2]
[424209778,1780666295000,-500.0,0.00013698,2]
[424209786,1780666296000,-500.0,0.00013698,2]
[424209785,1780666296000,-500.0,0.00013698,2]
[424209783,1780666296000,-500.0,0.00013698,2]
[424209784,1780666296000,-500.0,0.00013698,2]
[424209782,1780666296000,-500.0,0.00013698,2]
[424209788,1780666297000,-500.0,0.00013698,2]
[424209787,1780666297000,-500.0,0.00013698,2]
[424209789,1780666297000,-500.0,0.00013698,2]
[424209791,1780666297000,-500.0,0.00013698,2]
[424209794,1780666297000,-166.66,0.00013699,2]
[424209793,1780666297000,-2500.0,0.00013699,2]
[424209792,1780666297000,-200.0,0.00013699,2]
[424209795,1780666297000,-1848.1,0.00013699,2]
[424209790,1780666297000,-500.0,0.00013698,2]
[424209796,1780666298000,-999.99,0.00013699,2]
[424209797,1780666298000,-501.71,0.00013699,2]
[424209799,1780666298000,-150.99,0.00013699,2]
[424209798,1780666298000,-4999.99,0.00013699,2]
[424209801,1780666298000,-1064.22248438,0.00013699,2]
[424209802,1780666298000,-1064.22248438,0.00013699,2]
[424209803,1780666298000,-1064.22248438,0.00013699,2]
[424209800,1780666298000,-9999.99,0.00013699,2]
[424209806,1780666299000,-1064.22248438,0.00013699,2]
[424209805,1780666299000,-1064.22248438,0.00013699,2]
[424209804,1780666299000,-1064.22248438,0.00013699,2]
[424209807,1780666300000,-1064.22248438,0.00013699,2]
[424209808,1780666300000,-1064.22248438,0.00013699,2]
[424209810,1780666300000,-1064.22248438,0.00013699,2]
[424209811,1780666300000,-1064.22248438,0.00013699,2]
[424209809,1780666300000,-1064.22248438,0.00013699,2]
[424209813,1780666300000,-1064.22248438,0.00013699,2]
[424209814,1780666300000,-1064.22248438,0.00013699,2]
[424209815,1780666300000,-1064.22248438,0.00013699,2]
[424209816,1780666300000,-1064.22248438,0.00013699,2]
[424209817,1780666300000,-1064.22248438,0.00013699,2]
[424209812,1780666300000,-1064.22248438,0.00013699,2]
[424209820,1780666301000,-1064.22248438,0.00013699,2]
[424209819,1780666301000,-1064.22248438,0.00013699,2]
[424209818,1780666301000,-1064.22248438,0.00013699,2]
[424209823,1780666302000,-1064.22248438,0.00013699,2]
[424209824,1780666302000,-1064.22248438,0.00013699,2]
[424209822,1780666302000,-1064.22248438,0.00013699,2]
[424209821,1780666302000,-1064.22248438,0.00013699,2]
[424209826,1780666303000,-1064.22248438,0.00013699,2]
[424209825,1780666303000,-1064.22248438,0.00013699,2]
[424209829,1780666303000,-1064.22248438,0.00013699,2]
[424209828,1780666303000,-1064.22248438,0.00013699,2]
[424209830,1780666303000,-1064.22248438,0.00013699,2]
[424209827,1780666303000,-1064.22248438,0.00013699,2]
[424209835,1780666304000,-1064.22248438,0.00013699,2]
[424209834,1780666304000,-1064.22248438,0.00013699,2]
[424209833,1780666304000,-1064.22248438,0.00013699,2]
[424209832,1780666304000,-1064.22248438,0.00013699,2]
[424209831,1780666304000,-1064.22248438,0.00013699,2]
[424209839,1780666305000,-1064.22248438,0.00013699,2]
[424209838,1780666305000,-1064.22248438,0.00013699,2]
[424209837,1780666305000,-1064.22248438,0.00013699,2]
[424209836,1780666305000,-1064.22248438,0.00013699,2]
[424209840,1780666306000,-1064.22248438,0.00013699,2]
[424209841,1780666306000,-1064.22248438,0.00013699,2]
[424209842,1780666306000,-1064.22248438,0.00013699,2]
[424209845,1780666306000,-1381.54893709,0.00013699,2]
[424209844,1780666306000,-1381.54893709,0.00013699,2]
[424209846,1780666306000,-1381.54893709,0.00013699,2]
[424209843,1780666306000,-1381.54893709,0.00013699,2]
[424209850,1780666307000,-1381.54893709,0.00013699,2]
[424209847,1780666307000,-1381.54893709,0.00013699,2]
[424209848,1780666307000,-1381.54893709,0.00013699,2]
[424209849,1780666307000,-1381.54893709,0.00013699,2]
[424209851,1780666307000,-1381.54893709,0.00013699,2]
[424209858,1780666307000,-1362.3607574,0.00013699,2]
[424209853,1780666307000,-1381.54893709,0.00013699,2]
[424209854,1780666307000,-1381.54893709,0.00013699,2]
[424209856,1780666307000,-1381.54893709,0.00013699,2]
[424209855,1780666307000,-1381.54893709,0.00013699,2]
[424209857,1780666307000,-1381.54893709,0.00013699,2]
[424209852,1780666307000,-1381.54893709,0.00013699,2]
[424209859,1780666308000,-1362.3607574,0.00013699,2]
[424209860,1780666308000,-1362.3607574,0.00013699,2]
[424209861,1780666308000,-1362.3607574,0.00013699,2]
[424209862,1780666308000,-1362.3607574,0.00013699,2]
[424209863,1780666308000,-1362.3607574,0.00013699,2]
[424209864,1780666308000,-1362.3607574,0.00013699,2]
[424209865,1780666308000,-1362.3607574,0.00013699,2]
[424209867,1780666309000,-1362.3607574,0.00013699,2]
[424209868,1780666309000,-1362.3607574,0.00013699,2]
[424209869,1780666309000,-1362.3607574,0.00013699,2]
[424209870,1780666309000,-1362.3607574,0.00013699,2]
[424209866,1780666309000,-1362.3607574,0.00013699,2]
[424209872,1780666309000,-1362.3607574,0.00013699,2]
[424209873,1780666309000,-1362.3607574,0.00013699,2]
[424209874,1780666309000,-1362.3607574,0.00013699,2]
[424209876,1780666309000,-1362.3607574,0.00013699,2]
[424209875,1780666309000,-1362.3607574,0.00013699,2]
[424209871,1780666309000,-1362.3607574,0.00013699,2]
[424209877,1780666310000,-1362.3607574,0.00013699,2]
[424209878,1780666310000,-1362.3607574,0.00013699,2]
[424209879,1780666310000,-1313.70501607,0.00013699,2]
[424209881,1780666310000,-1313.70501607,0.00013699,2]
[424209880,1780666310000,-1313.70501607,0.00013699,2]
[424209882,1780666310000,-1313.70501607,0.00013699,2]
[424209883,1780666311000,-1313.70501607,0.00013699,2]
[424209884,1780666311000,-1313.70501607,0.00013699,2]
[424209885,1780666311000,-1313.70501607,0.00013699,2]
[424209887,1780666311000,-1313.70501607,0.00013699,2]
[424209886,1780666311000,-1313.70501607,0.00013699,2]
[424209892,1780666311000,-1313.70501607,0.00013699,2]
[424209889,1780666311000,-1313.70501607,0.00013699,2]
[424209891,1780666311000,-1313.70501608,0.00013699,2]
[424209890,1780666311000,-1313.70501608,0.00013699,2]
[424209893,1780666311000,-156.33,0.000137,2]
[424209888,1780666311000,-1313.70501607,0.00013699,2]
[424209894,1780666312000,-7794.96358009,0.00013746,2]
[424209895,1780666312000,-275.7579712,0.00013754,2]
[424209898,1780666312000,-431.18444929,0.00013835,2]
[424209896,1780666312000,-151.0,0.00013785,2]
[424209897,1780666312000,-6002.98043781,0.00013786,2]
[424209900,1780666313000,-433.0,0.00013967,2]
[424209899,1780666313000,-166.66,0.00013836,2]
[424209902,1780666313000,-250.0,0.00014,2]
[424209903,1780666313000,-9025.37470176,0.00014,2]
[424209901,1780666313000,-166.66,0.00013973,2]
[424209906,1780666313000,-2351.0,0.00014035,2]
[424209905,1780666313000,-238.26832983,0.00014025,2]
[424209907,1780666313000,-7794.96358009,0.00014064,2]
[424209908,1780666313000,-166.66,0.0001411,2]
[424209909,1780666313000,-166.57909325,0.0001411,10]
[424209904,1780666313000,-1500.0,0.00014,2]
[424209912,1780666314000,-166.66,0.00014247,2]
[424209911,1780666314000,-266.66127466,0.0001421,7]
[424209910,1780666314000,-6002.98043781,0.00014111,2]
[424209915,1780666315000,-166.66,0.00014384,2]
[424209913,1780666315000,-1717.819781,0.0001425,2]
[424209914,1780666315000,-7794.96358009,0.00014382,2]
[424209918,1780666315000,-6002.98043781,0.00014435,2]
[424209916,1780666315000,-10475.39936161,0.0001439,2]
[424209919,1780666315000,-171.157566,0.00014447,2]
[424209920,1780666315000,-238.26832983,0.00014463,2]
[424209921,1780666315000,-178.295222,0.00014464,2]
[424209922,1780666315000,-1400.0,0.000145,5]
[424209923,1780666315000,-200.0,0.000145,5]
[424209917,1780666315000,-1239.87853938,0.000144,2]
[424209927,1780666316000,-25000.0,0.00014662,3]
[424209926,1780666316000,-229.833684,0.00014652,2]
[424209925,1780666316000,-200.0,0.000146,5]
[424209924,1780666316000,-1400.0,0.000146,5]
[424209928,1780666316000,-25000.0,0.00014671,3]
[424209930,1780666316000,-25000.0,0.00014689,3]
[424209929,1780666316000,-25000.0,0.0001468,3]
[424209932,1780666316000,-11392.24985534,0.000147,2]
[424209933,1780666316000,-1400.0,0.000147,5]
[424209934,1780666316000,-7794.96358009,0.000147,2]
[424209935,1780666316000,-200.0,0.000147,5]
[424209936,1780666316000,-25000.0,0.00014706,3]
[424209937,1780666316000,-25000.0,0.00014715,3]
[424209931,1780666316000,-25000.0,0.00014698,3]
[424209939,1780666317000,-25000.0,0.00014733,3]
[424209938,1780666317000,-25000.0,0.00014724,3]
[424209940,1780666318000,-25000.0,0.00014742,3]
[424209941,1780666318000,-383.0,0.0001475,2]
[424209942,1780666318000,-25000.0,0.0001475,3]
[424209943,1780666318000,-383.0,0.00014751,2]
[424209944,1780666318000,-25000.0,0.00014759,3]
[424209946,1780666318000,-25000.0,0.00014768,3]
[424209948,1780666318000,-25000.0,0.00014786,3]
[424209945,1780666318000,-6002.98043781,0.0001476,2]
[424209947,1780666318000,-25000.0,0.00014777,3]
[424209964,1780666319000,-25000.0,0.00014847,3]
[424209950,1780666319000,-186.27,0.000148,2]
[424209951,1780666319000,-186.27,0.000148,2]
[424209953,1780666319000,-186.27,0.000148,2]
[424209952,1780666319000,-186.27,0.000148,2]
[424209954,1780666319000,-186.3,0.000148,2]
[424209956,1780666319000,-200.0,0.000148,5]
[424209955,1780666319000,-1400.0,0.000148,5]
[424209949,1780666319000,-25000.0,0.00014794,3]
[424209959,1780666319000,-443.0,0.00014818,2]
[424209960,1780666319000,-25000.0,0.00014821,3]
[424209961,1780666319000,-383.0,0.00014821,2]
[424209962,1780666319000,-25000.0,0.0001483,3]
[424209963,1780666319000,-25000.0,0.00014838,3]
[424209958,1780666319000,-25000.0,0.00014812,3]
[424209957,1780666319000,-25000.0,0.00014803,3]
[424209966,1780666320000,-383.0,0.0001486,2]
[424209967,1780666320000,-25000.0,0.00014865,3]
[424209965,1780666320000,-25000.0,0.00014856,3]
[424209969,1780666321000,-383.0,0.00014874,2]
[424209968,1780666321000,-25000.0,0.00014874,3]
[424209970,1780666321000,-383.0,0.00014877,2]
[424209971,1780666321000,-25000.0,0.00014882,3]
[424209972,1780666321000,-25000.0,0.00014891,3]
[424209973,1780666321000,-383.0,0.00014898,2]
[424209974,1780666321000,-25000.0,0.000149,3]
[424209975,1780666321000,-2000.0,0.000149,5]
[424209977,1780666321000,-268.0,0.000149,5]
[424209978,1780666321000,-238.26832983,0.000149,2]
[424209979,1780666321000,-383.0,0.00014903,2]
[424209980,1780666321000,-383.0,0.00014918,2]
[424209981,1780666321000,-383.0,0.00014948,2]
[424209983,1780666321000,-388.0,0.00014983,2]
[424209982,1780666321000,-388.0,0.0001498,2]
[424209984,1780666321000,-1513.4952654,0.0001499,2]
[424209985,1780666321000,-388.0,0.00014998,2]
[424209976,1780666321000,-230.99309568,0.000149,2]
[424209987,1780666322000,-1000.0,0.00014998,2]
[424209986,1780666322000,-250.0,0.00014998,2]
[424209989,1780666322000,-300.0,0.00014999,2]
[424209991,1780666322000,-4652352.09978795,0.00015,2]
[424209988,1780666322000,-1000.0,0.00014998,2]
[424209990,1780666322000,-187.68000001,0.00015,2]
[424209992,1780666323000,-3089.69612641,0.00015,2]
[424209994,1780666323000,-1224.77,0.00015,2]
[424209993,1780666323000,-155.23,0.000148,2]
[424209995,1780666412000,-150.0,0.00010286,2]
[424209996,1780666437000,450.11668839,0.00011087,7]
[424209997,1780666438000,450.11668839,0.00011309,7]
[424209998,1780666445000,-13194.06874025,0.000102,2]
[424209999,1780666470000,-2278.8851572,0.000102,2]
[424210000,1780666498000,-13194.06874025,0.00010199,2]
[424210001,1780666522000,-918.0,0.00010197,2]
[424210002,1780666532000,203.05245786,0.0003,120]
[424210003,1780666568000,-543.760925,0.00010145,2]
[424210004,1780666622000,-736.0,0.00010197,2]
[424210005,1780666647000,-464.0,0.00010197,2]
[424210006,1780666679000,-150.0,0.00010197,2]
[424210008,1780666680000,-251.0,0.00010197,2]
[424210007,1780666680000,-250.0,0.00010197,2]
[424210010,1780666701000,-249.0,0.00010197,2]
[424210011,1780666718000,200.0,0.000115,4]
[424210012,1780666752000,-232.9,0.00010145,2]
[424210013,1780666759000,273.3967448,0.00010653,7]
[424210016,1780666887000,300.0,0.000115,4]
[424210017,1780666953000,273.39674478,0.00010653,7]
[424210019,1780667120000,2428.49,0.00030082,120]
[424210020,1780667138000,273.39674476,0.00010653,7]
[424210021,1780667140000,-175.26704,9.948e-05,2]
[424210022,1780667165000,176.87,7.962e-05,2]
[424210024,1780667189000,161.02,0.00027397,120]
[424210023,1780667189000,-1154.30639488,9.975e-05,2]
[424210025,1780667190000,150.0,0.00010653,7]
[424210026,1780667191000,150.0,0.00010653,7]
[424210027,1780667228000,-2034.3987448,9.975e-05,2]
[424210028,1780667321000,-261.23701049,9.974e-05,2]
[424210031,1780667380000,328.07609372,0.00010957,7]
[424210030,1780667380000,218.7173958,0.00010348,7]
[424210029,1780667380000,340.6729439,0.00010653,7]
[424210032,1780667381000,1600.0,0.000115,4]
[424210033,1780667408000,2000.0,0.00030081,120]
[424210034,1780667414000,-192.60683635,9.479e-05,2]
[424210035,1780667417000,-7.39316365,9.479e-05,2]
[424210037,1780667418000,-3636.93640361,9.975e-05,2]
[424210036,1780667418000,-150.0,9.973e-05,2]
[424210038,1780667418000,-3794.32956726,9.975e-05,2]
[424210039,1780667418000,-1624.89357962,9.975e-05,2]
[424210049,1780667438000,-7.39316365,9.973e-05,2]
[424210048,1780667438000,-192.60683635,9.973e-05,2]
[424210053,1780667440000,-175.4727437,9.973e-05,2]
[424210082,1780667440000,-171.7,9.973e-05,2]
[424210081,1780667440000,-298.56272747,9.973e-05,2]
[424210077,1780667440000,-500.0,9.973e-05,2]